Cogmind - Beta 15 @@@ ROGUE MODE // 2025.05.31 @ 12:29:34 Player: Zaros426 Result: Destroyed by Y-54 Guardian with Gatling Laser Performance ------------- Evolutions (4) 2000 Regions Visited (8) 1600 Robots Destroyed (130) 650 Value Destroyed (3777) 3777 Prototype IDs (25) 500 Alien Tech Used (0) 0 Bonus (1389) 1389 TOTAL SCORE: 9916 Bonus ------- High Alert Combat Kills 375 Follower Combat Kills 214 Registered with UFD 300 Met Optimus in HQ 500 Cogmind --------- Core Integrity 0/850 Matter 202/300 Energy 5/290 System Corruption 1% Temperature Warm (179) Movement Treading (480) Ox4 Location -6/Lower Caves Parts ------- > --- POWER (1+1) ------ Improved Deuterium Engine > --- PROPULSION (5+1) - Improved Medium Treads Armored Huge Wheel > --- UTILITY (6+1) ---- Huge Storage Unit Advanced Terrain Scan Processor (+) Improved Medium Armor Plating Layered Light Armor Plating Layered Medium Armor Plating Improved Shield Generator Rainbow Chip > --- WEAPON (3+1) ----- Lightning Gun Minigun Flak Gun > --- INVENTORY (25) --- Angular Momentum Engine Light Treads Advanced Heat Sink High-capacity Storage Unit Humpback High-capacity Battery (250) High-capacity Matter Pod (200) Enhanced Optical Array Experimental Sensor Array IFF Parser Advanced Terrain Scan Processor Seismic Detector Makeshift Transmission Jammer ECM Suite Advanced ECM Suite Improved System Shield Gatling Laser Improved Datajack CPS Tube (2) Makeshift Axe Makeshift Sword Peak State ------------ > --- POWER ------------ Improved Deuterium Engine > --- PROPULSION ------- Improved Medium Treads Improved Medium Treads Compact Wheel Armored Huge Wheel > --- UTILITY ---------- Huge Storage Unit Experimental Terrain Scanner Advanced Terrain Scan Processor Enhanced Scrap Shield Improved Shield Generator Rainbow Chip > --- WEAPON ----------- Flak Gun Makeshift Axe Makeshift Sword > --- INVENTORY -------- Angular Momentum Engine Light Treads Wheel Wheel Advanced Heat Sink High-capacity Storage Unit Humpback High-capacity Battery High-capacity Matter Pod Enhanced Optical Array Experimental Sensor Array IFF Parser Seismic Detector Advanced ECM Suite Layered Light Armor Plating Layered Medium Armor Plating Improved Shield Generator System Shield Improved System Shield Shock Rifle Shock Rifle Improved Datajack CPS Tube DRS Beacon [Rating: 86] Favorites ----------- Power Subdweller Power Source Engine Subdweller Power Source Propulsion Light Treads Treads Light Treads Leg Flexi-carbon Leg Wheel Compact Wheel Hover Unit Improved Gravmag System Utility High-capacity Storage Unit Device Seismic Detector Storage High-capacity Storage Unit Processor Advanced Terrain Scan Processor Hackware Hacking Suite Protection Makeshift Light Armor Plating Weapon Makeshift Axe Energy Gun Particle Gun Energy Cannon Subdweller Beam Cannon Ballistic Gun Heavy Battle Rifle Ballistic Cannon Heavy Flak Cannon Launcher Subdweller Shrapnel Launcher Special Weapon Junk Cannon Slashing Weapon Makeshift Axe Build | -11 -10 -10 -10 -9 -9 -6 -6 -6 ------- Run | Yrd Mat Min Sub Rec Scr Fac Low Low Slots Evolved 8 | . . . . . . 8 . . Power . | . . . . . . . . . Propulsion 3 | . . . . . . 3 . . Utility 4 | . . . . . . 4 . . Weapon 1 | . . . . . . 1 . . Parts Attached 135 | 7 13 2 19 5 6 66 14 3 Power 12 | 1 1 . 2 . . 8 . . Engine 12 | 1 1 . 2 . . 8 . . Core . | . . . . . . . . . Reactor . | . . . . . . . . . Propulsion 42 | 3 . . 5 1 2 31 . . Treads 18 | 2 . . 5 1 1 9 . . Leg 6 | 1 . . . . . 5 . . Wheel 17 | . . . . . 1 16 . . Hover 1 | . . . . . . 1 . . Flight . | . . . . . . . . . Utility 43 | 1 5 1 5 2 1 17 8 3 Device 16 | . 2 1 3 1 . 4 4 1 Storage 7 | 1 2 . 1 1 . 2 . . Processor 6 | . . . . . . 4 2 . Hackware 6 | . . . . . . 6 . . Protection 8 | . 1 . 1 . 1 1 2 2 Artifact . | . . . . . . . . . Weapon 38 | 2 7 1 7 2 3 10 6 . Energy Gun 7 | 1 2 . . . . 1 3 . Energy Cannon 6 | . . . 2 . 1 3 . . Ballistic Gun 11 | 1 . . 2 1 1 4 2 . Ballistic Cannon 3 | . 1 . 1 . . 1 . . Launcher 7 | . 4 . 1 1 . 1 . . Special Weapon 2 | . . 1 . . 1 . . . Impact Weapon . | . . . . . . . . . Slashing Weapon 2 | . . . 1 . . . 1 . Piercing Weapon . | . . . . . . . . . Special Melee Weapon . | . . . . . . . . . Unidentified Prototypes 3 | . . 1 . . 1 . 1 . Parts Lost 41 | . . . 1 . . 37 1 2 Power 6 | . . . 1 . . 5 . . Propulsion 18 | . . . . . . 16 . 2 Utility 7 | . . . . . . 6 1 . Weapon 10 | . . . . . . 10 . . Highest Loss Streak 6 | . . . 1 . . 6 1 2 To Critical Strikes . | . . . . . . . . . Average Backups 16 | 2 9 14 15 17 17 16 21 23 Power . | . . . . . . . 1 1 Propulsion 1 | . 2 3 1 . . 1 2 1 Utility 8 | 1 2 1 7 8 9 10 14 16 Weapon 6 | . 4 9 6 7 7 3 2 3 Tool/Special . | . . . . . . . . . Unused Backups 36 | . 3 1 4 1 8 3 3 13 Power 2 | . . . . . . . 1 1 Propulsion 1 | . . . . . . 1 . . Utility 18 | . 2 . 1 . 2 1 2 10 Weapon 11 | . 1 . 3 1 5 1 . . Tool/Special 4 | . . 1 . . 1 . . 2 Average Slot Usage (%) 92 | . 98 100 93 97 94 81 72 69 Engine 12 | . 14 14 13 14 14 5 5 5 Treads 24 | . 28 28 28 28 27 9 10 10 Wheel 2 | . . . . . . 11 10 8 Device 3 | . 8 14 4 . . 4 9 6 Storage 12 | . 14 14 14 13 14 6 5 5 Processor 1 | . . . . . . 3 9 10 Hackware 1 | . . . . . . 18 . . Protection 7 | . 4 . 3 11 14 1 5 6 Energy Gun 3 | . 12 24 . . . . 5 5 Energy Cannon 2 | . . . 7 . . 1 . . Ballistic Gun 5 | . 3 . 2 11 9 3 3 10 Launcher 4 | . 10 . 7 10 . . . . Special Weapon 1 | . . 3 . . 4 2 . . Slashing Weapon 7 | . . . 9 6 9 4 5 . Peak Build Rating 86 | 7 11 19 20 23 31 74 86 82 Average Rating 26 | 5 8 11 17 20 25 52 81 76 On Entrance 26 | . 7 11 11 19 23 30 58 82 Naked Turns . | . . . . . . . . . Heaviest Build 221 | 11 34 32 221 216 66 111 126 . Greatest Support 148 | 40 40 40 40 40 40 148 44 . Greatest Overweight (x) 6 | . . . 5 5 5 6 2 . Average Overweight (x) 1 | . . . 1 1 1 2 2 . Largest Inventory Capacity 35 | 8 15 15 35 35 20 25 25 25 Average Capacity 20 | 7 11 15 23 21 20 21 25 25 Most Carried 25 | 6 15 15 21 21 20 24 25 24 Average Carried 17 | 2 9 14 16 19 19 18 24 23 Final Capacity 35 | 8 15 15 35 20 20 25 25 25 Final Carried 25 | 6 14 14 21 20 20 21 25 22 Class Distribution -------------------- 46% | Mutant 21% | Derelict-Mutant 15% | Hauler-Mutant 8% | Scavenger-Mutant 5% | Hacker-Mutant Dominant Class ---------------- Mutant | -10/Materials Mutant | -10/Mines Hauler-Mutant | -10/Subcaves Mutant | -9/Recycling Derelict-Mutant | -9/Scraptown Hacker-Mutant | -6/Factory Scavenger-Mutant | -6/Lower Caves Scavenger-Mutant | -6/Lower Caves Resources | -11 -10 -10 -10 -9 -9 -6 -6 -6 ----------- Run | Yrd Mat Min Sub Rec Scr Fac Low Low Matter Collected 3754 | 312 533 272 495 132 130 1486 394 . Remotely . | . . . . . . . . . Salvage Created 5359 | 107 742 87 659 189 . 3338 214 23 Parts 240 | 7 55 5 36 7 . 118 11 1 Haulers Intercepted 3 | . 1 . . . . 2 . . Recyclers Shooed 9 | . 2 . . 2 . 5 . . Parts Field Recycled . | . . . . . . . . . Retrieved Matter . | . . . . . . . . . Parts Self-Destructed 22 | . . . 19 . . . 2 1 Prevented 3 | . . . . . . . 3 . Kills | -11 -10 -10 -10 -9 -9 -6 -6 -6 ------- Run | Yrd Mat Min Sub Rec Scr Fac Low Low Combat Hostiles Destroyed 67 | . 10 1 14 1 . 37 3 1 Melee 5 | . . . 1 . . 4 . . Guns 19 | . 2 1 2 . . 11 2 1 Cannons 20 | . . . 7 1 . 12 . . AOE 17 | . 8 . 2 . . 6 1 . Classes Destroyed 20 | 2 7 . 2 . . 7 2 . Worker 18 | . 9 . . . . 9 . . Builder 12 | . 5 1 . . . 6 . . Tunneler 3 | 2 . 1 . . . . . . Hauler 3 | . 1 . . . . 2 . . Recycler 13 | 1 4 . . 1 . 7 . . Minesweeper 1 | . . . . . . . 1 . Mechanic 3 | . . . . . . 3 . . Operator 4 | . 2 . . . . 2 . . Watcher 6 | . 3 . . . . 3 . . Swarmer 5 | . 3 . 1 . . . . 1 Saboteur 1 | . . . . . . 1 . . Grunt 36 | . 7 1 3 . . 25 . . Brawler 2 | . . . . . . 2 . . Protector 1 | . . . . . . 1 . . Sentry 4 | . . . 1 1 . 2 . . Specialist 1 | . . . . . . 1 . . Hunter 4 | . . . . . . 3 1 . Programmer 3 | . . . . . . 2 1 . Subdweller 9 | . . . 9 . . . . . Mutant 1 | . . . . . . . 1 . Best Kill Streak 14 | 1 9 1 2 1 . 14 1 1 Combat Bots Only 9 | . 3 1 2 1 . 9 1 1 Max Kills in Single Turn 4 | 1 4 1 1 1 . 4 1 1 Gunslinging . | . . . . . . . . . Exploded 3 | . 2 . 1 . . 3 1 . Melee 1 | . . . 1 . . 1 . . Uniques/NPCs Destroyed . | . . . . . . . . . Combat | -11 -10 -10 -10 -9 -9 -6 -6 -6 -------- Run | Yrd Mat Min Sub Rec Scr Fac Low Low Hostile Shots Fired 649 | . 17 7 52 4 . 391 84 94 Missed 186 | . 5 2 16 1 . 111 22 29 Hits 463 | . 12 5 36 3 . 280 62 65 Melee 4 | . . . . . . 4 . . Projectile 459 | . 12 5 36 3 . 276 62 65 Critical Strikes 15 | . . . . . . 13 1 1 Part Disruptions 2 | . . . . . . 2 . . Damage Taken 7803 | . 274 67 1078 46 . 5162 642 534 Core 1074 | . 12 11 201 . . 746 21 83 Absorbed by Shields 570 | . . . . . . 305 155 110 Core Remaining (%) 55 | 100 . . . . 10 . . . Volleys Fired 234 | 14 56 14 32 6 . 95 10 7 Largest 3 | 2 2 2 2 2 . 3 3 3 Hottest 180 | 60 130 165 113 113 . 145 180 108 Shots Fired 427 | 28 81 25 58 10 . 187 21 17 Gun 270 | 28 52 21 20 4 . 107 21 17 Cannon 85 | . 3 . 35 4 . 43 . . Launcher 36 | . 26 . 3 2 . 5 . . Special 36 | . . 4 . . . 32 . . Kinetic 240 | 14 32 . 29 6 . 137 8 14 Thermal 114 | 14 23 25 29 4 . 16 3 . Explosive 26 | . 26 . . . . . . . Electromagnetic 15 | . . . . . . 2 10 3 Impact 32 | . . . . . . 32 . . Robot Hit Streak 17 | 8 7 3 9 9 . 13 17 4 Robot Miss Streak 9 | 3 3 2 2 2 . 9 6 3 Penetration Max 2 | . . . . . . 2 . . Secondary Targets 1 | . . . . . . 1 . . Max Gunslinging Chain 1 | . . . . . . 1 . . Shots Hit Robots 363 | 16 38 10 60 10 . 197 19 13 Core Hits 214 | 4 45 4 17 4 . 116 13 11 Critical Kills 6 | . . . 2 . . 4 . . Critical Parts Destroyed 6 | . . . . . . 6 . . Critical Strikes 19 | . 2 . 3 . . 13 1 . Burn 2 | . 2 . . . . . . . Meltdown 2 | . . . 2 . . . . . Destroy 5 | . . . . . . 5 . . Blast 1 | . . . 1 . . . . . Corrupt 1 | . . . . . . . 1 . Smash 5 | . . . . . . 5 . . Sever 3 | . . . . . . 3 . . Melee Attacks 272 | . . . 164 12 . 87 9 . Impact . | . . . . . . . . . Slashing 272 | . . . 164 12 . 87 9 . Piercing . | . . . . . . . . . Sneak Attacks 26 | . . . . 4 . 21 1 . Combat Hostiles . | . . . . . . . . . Follow-up Attacks . | . . . . . . . . . Damage Inflicted 14676 | 164 1543 146 2244 548 . 9322 464 245 Guns 3600 | 164 435 146 308 45 . 1949 308 245 Cannons 1780 | . . . 734 85 . 961 . . Explosions 2983 | . 1108 . 226 23 . 1569 57 . Melee 4498 | . . . 976 386 . 3037 99 . Ramming 9 | . . . . 9 . . . . Kinetic 4857 | 87 222 . 658 68 . 3498 96 228 Thermal 1724 | 77 213 146 610 85 . 467 126 . Explosive 1359 | . 1108 . . . . 251 . . Electromagnetic 423 | . . . . . . 263 143 17 Impact 1806 | . . . . . . 1806 . . Slashing 4498 | . . . 976 386 . 3037 99 . Piercing . | . . . . . . . . . Highest Corruption 3 | . . . . . . 3 3 1 Average Corruption 1 | . . . . . . 2 1 1 Corruption Purged 3 | . . . . . . . 3 . Corruption Blocked . | . . . . . . . . . Effects 27 | . . . . . . 17 9 1 Message Errors 10 | . . . . . . 7 2 1 Matter Fused 9 | . . . . . . 5 4 . Heat Flow Errors 1 | . . . . . . . 1 . Energy Discharges 2 | . . . . . . 1 1 . Data Loss (minor) 4 | . . . . . . 4 . . Misfires 1 | . . . . . . . 1 . Overload Shots . | . . . . . . . . . Overflow Damage 1254 | . 26 . 55 144 . 1029 . . Projectiles 596 | . . . . . . 596 . . Explosions 111 | . 26 . . . . 85 . . Melee 547 | . . . 55 144 . 348 . . Knockbacks 35 | . . . . . . 35 . . Impact 7 | . . . . . . 7 . . Kinetic 22 | . . . . . . 22 . . Secondary 6 | . . . . . . 6 . . Self-Inflicted Damage 373 | . 138 . . . . 188 47 . Shots 14 | . 7 . . . . 6 1 . Rammed 5 | . . . . 5 . . . . Targets Rammed 5 | . . . . 5 . . . . Kicked . | . . . . . . . . . Crushed . | . . . . . . . . . Highest Temperature 294 | . 252 236 7 162 . 294 292 182 Average Temperature 89 | . 97 70 4 71 . 89 118 121 Received Heat Transfer 2138 | . 66 39 138 9 . 1620 60 206 Effects 6 | . 3 . . . . 2 1 . Energy Bleed 1 | . 1 . . . . . . . Interference 5 | . 2 . . . . 2 1 . Siege Activations . | . . . . . . . . . Martial Activations . | . . . . . . . . . Shielding Activations . | . . . . . . . . . Robots Disrupted . | . . . . . . . . . Combat Hostiles . | . . . . . . . . . Robots Corrupted 7 | . . . . . . 7 . . Combat Hostiles 4 | . . . . . . 4 . . Parts Fried 10 | . . . . . . 9 1 . Impact Corruptions 16 | . . . . . . 16 . . Robots Melted 2 | . . . 2 . . . . . Combat Hostiles 2 | . . . 2 . . . . . Parts Melted 6 | . 2 1 3 . . . . . Heat Transferred 2843 | 175 629 370 814 111 . 594 150 . Parts Sabotaged 3 | . . . . . . 3 . . Parts Stolen . | . . . . . . . . . Parts Stripped . | . . . . . . . . . Power Chain Reactions 3 | . . . . . . 2 1 . Alert | -11 -10 -10 -10 -9 -9 -6 -6 -6 ------- Run | Yrd Mat Min Sub Rec Scr Fac Low Low Maximum Alert Level 3 | . 1 . . . . 3 . . Low Security (%) 63 | 100 26 100 . 100 . 36 . . Level 1 21 | . 73 . . . . 11 . . Level 2 10 | . . . . . . 37 . . Level 3 4 | . . . . . . 14 . . Level 4 . | . . . . . . . . . Level 5 . | . . . . . . . . . High Security . | . . . . . . . . . Max Security . | . . . . . . . . . Peak Influence 873 | 5 322 103 . 141 . 873 . . Initial 111 | . . 103 . 111 . . . . Average 166 | . 203 12 . 16 . 384 . . Influence Increases 3071 | 15 703 59 360 167 . 1667 80 20 Destroy 0b10 Robot/C 1220 | . 200 20 100 20 . 820 40 20 Destroy 0b10 Robot/NC 325 | 15 120 10 . 10 . 165 5 . Destroy Leader 278 | . 48 10 20 . . 180 20 . Allied During Kill 19 | . . . . . . 19 . . Successful Hack 86 | . 26 . . 6 . 54 . . Select Force Hacks 180 | . 60 . . 90 . 30 . . Disable Machine 300 | . 105 . . 15 . 180 . . Destroy Structure 273 | . 144 4 . 26 . 99 . . Partial Spotted 15 | . . . . . . 15 . . Lose Combat Pursuer 375 | . . 15 240 . . 105 15 . Influence Decreases 3039 | 15 437 325 127 400 . 810 884 41 Entered New Map 614 | . . 163 . 122 . . 318 11 Time Decay 2015 | 15 437 162 127 278 . 430 556 10 Lost Part 370 | . . . . . . 340 10 20 Lost Ally 40 | . . . . . . 40 . . Squads Dispatched 21 | . 3 . . . . 18 . . Investigation 9 | . 2 . . . . 7 . . Extermination 4 | . . . . . . 4 . . Reinforcement 5 | . 1 . . . . 4 . . Assault 3 | . . . . . . 3 . . Garrison . | . . . . . . . . . Intercept . | . . . . . . . . . Searches Triggered . | . . . . . . . . . Construction Impeded 2 | . . . . . . 2 . . Haulers Reinforced 1 | . . . . . . 1 . . Active Scanning Responses . | . . . . . . . . . Cargo Convoy Interrupts . | . . . . . . . . . Stealth | -11 -10 -10 -10 -9 -9 -6 -6 -6 --------- Run | Yrd Mat Min Sub Rec Scr Fac Low Low Distress Signals 5 | . 1 . . . . 4 . . Communications Jammed . | . . . . . . . . . Distress Signals . | . . . . . . . . . Times Spotted 112 | . 14 2 25 1 . 63 4 3 Peak Tracking Total 9 | . 4 2 3 . . 9 2 3 Tactical Retreats 14 | . . 1 6 . . 6 1 . Traps | -11 -10 -10 -10 -9 -9 -6 -6 -6 ------- Run | Yrd Mat Min Sub Rec Scr Fac Low Low Traps Triggered 6 | . . . 4 . . 2 . . Indirectly . | . . . . . . . . . Trap Hack Attempts . | . . . . . . . . . Triggered . | . . . . . . . . . Disarmed . | . . . . . . . . . Reprogrammed . | . . . . . . . . . Reused . | . . . . . . . . . Traps Extracted . | . . . . . . . . . Installed 5 | . . . . . . . 5 . Triggered . | . . . . . . . . . Most Traps Carried 5 | . . . . . . . 5 . Machines | -11 -10 -10 -10 -9 -9 -6 -6 -6 ---------- Run | Yrd Mat Min Sub Rec Scr Fac Low Low Machines Disabled 22 | . 7 . 1 1 . 12 1 . Max in Single Turn 3 | . 2 . 1 1 . 3 1 . Garrison Access 1 | . . . . . . 1 . . Machines Repaired . | . . . . . . . . . Machines Dismantled . | . . . . . . . . . Machines Sabotaged . | . . . . . . . . . Overloaded Fab Kills . | . . . . . . . . . Hacking | -11 -10 -10 -10 -9 -9 -6 -6 -6 --------- Run | Yrd Mat Min Sub Rec Scr Fac Low Low Machines Accessed 45 | . 8 . 2 9 10 15 1 . Terminals 15 | . 6 . . 4 . 5 . . Fabricators 3 | . . . . . . 3 . . Repair Stations . | . . . . . . . . . Recycling Units 11 | . 2 . . 3 . 6 . . Scanalyzers . | . . . . . . . . . Garrison Access 1 | . . . . . . 1 . . Total Hacks 184 | . 23 . 13 40 75 32 1 . Successful 154 | . 12 . 13 31 75 22 1 . Failed 29 | . 10 . . 9 . 10 . . Catastrophic 5 | . . . . 2 . 3 . . Database Lockouts 1 | . 1 . . . . . . . Manual 41 | . 19 . . 14 . 8 . . Terminals 51 | . 19 . . 13 . 19 . . Fabricators 5 | . . . . . . 5 . . Repair Stations . | . . . . . . . . . Recycling Units 14 | . 4 . . 3 . 7 . . Scanalyzers . | . . . . . . . . . Garrison Access 1 | . . . . . . 1 . . Terminal Hacks 131 | . 4 . 13 26 75 12 1 . Record 111 | . . . 12 24 75 . . . Part Schematic 3 | . . . . . . 3 . . Robot Analysis 3 | . 2 . . 1 . . . . Prototype ID Bank 3 | . . . . 1 . 2 . . Open Door 1 | . . . . . . . 1 . Branch Access Points 1 | . . . . . . 1 . . Terminal Index 1 | . . . . . . 1 . . Alert Level 1 | . . . . . . 1 . . Locate Traps 4 | . 2 . . . . 2 . . Recall Assault 1 | . . . . . . 1 . . Hauler Manifests 1 | . . . . . . 1 . . Proto ID Catalog 1 | . . . 1 . . . . . Fabricator Hacks 2 | . . . . . . 2 . . Network Status 1 | . . . . . . 1 . . Build 1 | . . . . . . 1 . . Repair Station Hacks . | . . . . . . . . . Recycling Unit Hacks 1 | . . . . . . 1 . . Retrieve Components 1 | . . . . . . 1 . . Scanalyzer . | . . . . . . . . . Garrison Access Hacks 1 | . . . . . . 1 . . Seal Access 1 | . . . . . . 1 . . Unauthorized Hacks 19 | . 8 . . 5 . 6 . . Terminals 8 | . 6 . . 2 . . . . Botnet 1 | . 1 . . . . . . . Skim 7 | . 5 . . 2 . . . . Fabricators . | . . . . . . . . . Repair Stations . | . . . . . . . . . Recycling Units 11 | . 2 . . 3 . 6 . . Tunnel 6 | . 2 . . 3 . 1 . . Fedlink 5 | . . . . . . 5 . . Scanalyzers . | . . . . . . . . . Garrison Access . | . . . . . . . . . Data Cores Recovered 1 | . . . . . . 1 . . Used . | . . . . . . . . . Hacking Detections 18 | . 6 . . 4 . 8 . . Full Trace Events . | . . . . . . . . . Feedback Events . | . . . . . . . . . Feedback Blocked . | . . . . . . . . . Robot Schematics Acquired . | . . . . . . . . . Robots Built 2 | . . . . . . 2 . . Authchips . | . . . . . . . . . Time 76 | . . . . . . 76 . . Total Robot Build Rating 10 | . . . . . . 10 . . Part Schematics Acquired 3 | . . . . . . 3 . . Parts Built . | . . . . . . . . . Authchips . | . . . . . . . . . Time . | . . . . . . . . . Total Part Build Rating . | . . . . . . . . . Parts Repaired . | . . . . . . . . . Time . | . . . . . . . . . Parts Recycled . | . . . . . . . . . Recycled Matter . | . . . . . . . . . Retrieved Matter . | . . . . . . . . . Retrieved Components 10 | . . . . . . 10 . . Parts Scanalyzed . | . . . . . . . . . Part Schematics Acquired . | . . . . . . . . . Parts Damaged . | . . . . . . . . . Bothacking | -11 -10 -10 -10 -9 -9 -6 -6 -6 ------------ Run | Yrd Mat Min Sub Rec Scr Fac Low Low Used RIF Installer . | . . . . . . . . . Robots Hacked . | . . . . . . . . . Non-combat . | . . . . . . . . . Combat . | . . . . . . . . . Robot Hacks Applied . | . . . . . . . . . Relay Couplers Released . | . . . . . . . . . Fabnet Peak Effective % . | . . . . . . . . . Robots Rewired . | . . . . . . . . . Allies Hacked . | . . . . . . . . . Hacks Repelled . | . . . . . . . . . Allies | -11 -10 -10 -10 -9 -9 -6 -6 -6 -------- Run | Yrd Mat Min Sub Rec Scr Fac Low Low Total Allies 2 | . . . . . . 2 . . Largest Group 2 | . . . . . . 2 . . Highest-Rated Group 86 | . . . . . . 86 . . Highest-Rated Ally 43 | . . . . . . 43 . . Total Orders . | . . . . . . . . . Ally Attacks 24 | . . . . . . 24 . . Total Damage 788 | . . . . . . 788 . . Kills 5 | . . . . . . 5 . . Allies Corrupted 1 | . . . . . . 1 . . Allies Melted . | . . . . . . . . . Intel | -11 -10 -10 -10 -9 -9 -6 -6 -6 ------- Run | Yrd Mat Min Sub Rec Scr Fac Low Low Active Infowar (turns) 5530 | . 1091 1142 799 . . 1079 1415 4 Optics 625 | . . . 309 . . 316 . . Sensors 771 | . . 1 . . . 1 767 2 IFF 563 | . . . . . . 461 102 . Terrain 563 | . . . . . . . 563 . Seismic 3749 | . 1091 1141 486 . . 133 894 4 Machine Analysis 169 | . . . . . . 169 . . Cloaking 294 | . . . 4 . . 290 . . Robot Analysis Total 3 | . 2 . . 1 . . . . Derelict Logs Recovered 11 | . . 1 3 . 5 . 2 . Drone Launches . | . . . . . . . . . Drone Recoveries . | . . . . . . . . . Exploration | -11 -10 -10 -10 -9 -9 -6 -6 -6 ------------- Run | Yrd Mat Min Sub Rec Scr Fac Low Low Turns Passed 22986 | 203 1827 1142 7742 2104 6212 2108 1622 26 Spaces Moved 9802 | 95 830 653 2797 752 2518 1081 1076 . Core 1 | 1 . . . . . . . . Treads 7525 | 80 830 653 2797 752 2310 103 . . Legs 18 | 14 . . . . . 4 . . Wheels 2258 | . . . . . 208 974 1076 . Hover . | . . . . . . . . . Flight . | . . . . . . . . . Fastest Speed 50 | 50 160 160 160 160 165 92 130 . Average Speed 210 | 152 160 160 255 267 242 134 130 . Slowest Speed 610 | 160 160 160 610 610 250 260 130 . Overloaded Moves . | . . . . . . . . . Propulsion Burnouts . | . . . . . . . . . Robots Hopped . | . . . . . . . . . Potential Cave-ins . | . . . . . . . . . Cave-ins Triggered 1 | . . . 1 . . . . . Exploration Rate (%) 66 | 6 95 100 99 92 95 27 85 2 Regions Visited 8 Branch Regions 6 Pre-discovered Areas 13 | . 2 1 1 3 3 2 1 . Known Exits Taken 3 | . . 1 1 . . 1 . . Unknown Exits Taken 5 | 1 1 . . 1 1 . 1 . Scrap Searched 33 | . . 1 12 . 7 . 13 . Spaces Dug 150 | . 17 4 83 33 . 8 5 . Terrain Destroyed 432 | . 139 4 121 33 . 122 13 . Melee 103 | . . . 83 7 . 8 5 . Projectile 16 | . . 4 3 . . 9 . . AOE 313 | . 139 . 35 26 . 105 8 . Terrain Rammed . | . . . . . . . . . Walls Destroyed . | . . . . . . . . . Machines Disabled . | . . . . . . . . . Actions | -11 -10 -10 -10 -9 -9 -6 -6 -6 --------- Run | Yrd Mat Min Sub Rec Scr Fac Low Low Total 11467 | 122 1250 716 3175 810 2628 1478 1274 14 Wait 640 | . 315 38 94 . 41 48 104 . Move 9794 | 94 829 652 2796 751 2517 1080 1075 . Hop . | . . . . . . . . . Pick Up 148 | 6 17 3 28 19 27 26 22 . Fast Attach 74 | 7 2 . 9 1 1 49 5 . Attach 51 | . 2 . 1 1 7 32 6 2 Detach 16 | . . . . . 3 12 1 . Swap 90 | . 14 6 26 10 5 11 16 2 Drop 129 | 1 15 3 25 5 27 30 21 2 Fire 234 | 14 56 14 32 6 . 95 10 7 Melee 272 | . . . 164 12 . 87 9 . Ram . | . . . . . . . . . Kick . | . . . . . . . . . Crush 5 | . . . . 5 . . . . Escape Stasis 8 | . . . . . . 8 . . Rewire . | . . . . . . . . . Trap 5 | . . . . . . . 5 . Miscellaneous 1 | . . . . . . . . 1 Route ------- -11/Scrapyard -10/Materials (discovered 6 exits: *Mat x3 / [*Min x2] / Sub) -10/Mines (discovered 3 exits: *Mat x2 / *Sub) -10/Subcaves (discovered 3 exits: *Mat x2 / *Rec) -9/Recycling (discovered 2 exits: [*Fac] / *Scr) -9/Scraptown (discovered 2 exits: *Fac x2) -6/Factory (discovered 2 exits: *Low x2) -6/Lower Caves -6/Lower Caves History --------- Turn | Location | Event 27 | -11/Scrapyard | Discovered new exit (range 16) 204 | -11/Scrapyard | Entered Materials 304 | -10/Materials | Build established: Mutant 305 | -10/Materials | Discovered new exit (range 13) 527 | -10/Materials | Discovered new exit (range 12) 873 | -10/Materials | Discovered new exit (range 4) 1259 | -10/Materials | Discovered new exit (range 9) 1390 | -10/Materials | Discovered new exit (range 16) 1422 | -10/Materials | Central database locked down 1477 | -10/Materials | Learned location of 2 exits from Subcaves 1521 | -10/Materials | Loaded intel: 1 repair station location 1554 | -10/Materials | Learned Storage garrison access intel 1577 | -10/Materials | Learned Storage emergency access door positions 1588 | -10/Materials | Learned 2 Mines zone layouts 1610 | -10/Materials | Identified exit to Subcaves 1610 | -10/Materials | Learned location of 1 exit from Materials 2031 | -10/Materials | Entered Mines 2032 | -10/Mines | Identified exit to Materials 2219 | -10/Mines | Received a Rocket Launcher from a helpful Derelict 2267 | -10/Mines | Discovered exit to Subcaves (range 6) 2333 | -10/Mines | Found a damaged Exp. Sensor Array with a note attached 2340 | -10/Mines | Found Prototype Device 2360 | -10/Mines | Identified Exp. Sensor Array 2518 | -10/Mines | Learned location of Zion (-7) 2788 | -10/Mines | Discovered exit to Materials (range 8) 3173 | -10/Mines | Entered Subcaves 3174 | -10/Subcaves | Shifting Twisted Machinery released Mak. Axe 3174 | -10/Subcaves | Identified exit to Recycling 3175 | -10/Subcaves | Identified exit to Materials 3175 | -10/Subcaves | Learned Materials stockpile data 3184 | -10/Subcaves | Shifting Twisted Machinery released Shrapnel Trap 4126 | -10/Subcaves | Shifting Twisted Machinery released Scrap Shield 4179 | -10/Subcaves | Shifting Twisted Machinery released Scrap Shield 4470 | -10/Subcaves | Build established: Scavenger-Mutant 5376 | -10/Subcaves | Learned Materials garrison access intel 5500 | -10/Subcaves | A swath of the cavern ceiling suddenly collapsed 5703 | -10/Subcaves | Core integrity fell below 50% 5804 | -10/Subcaves | Build established: Mutant 5864 | -10/Subcaves | Visited 4L-MR0's lab 5884 | -10/Subcaves | Found Rainbow Chip 5965 | -10/Subcaves | A swath of the cavern ceiling suddenly collapsed 5995 | -10/Subcaves | Crushed by falling debris 5995 | -10/Subcaves | Core integrity fell below 20% 6986 | -10/Subcaves | Visited Clippyterm 7931 | -10/Subcaves | Build established: Hauler-Mutant 8331 | -10/Subcaves | Shifting Twisted Machinery released Sub. Shrapnel Launcher 8338 | -10/Subcaves | Shifting Twisted Machinery released Barrage Gun 10915 | -10/Subcaves | Entered Recycling 11453 | -9/Recycling | Build established: Mutant 12346 | -9/Recycling | Discovered new exit (range 12) 12876 | -9/Recycling | Scanned before Scraplab entrance 12986 | -9/Recycling | Entered Scraplab 13014 | -9/Recycling | Discovered new exit (range 2) 13019 | -9/Recycling | Entered Scraptown 13079 | -9/Scraptown | Build established: Derelict-Mutant 13339 | -9/Scraptown | Visited Cyclists 13407 | -9/Scraptown | Visited Shadow of the Wyrm 13459 | -9/Scraptown | Visited Bundlers 13569 | -9/Scraptown | Visited Cave Peace 13692 | -9/Scraptown | Heard Great Nut preacher, LISTEN AND RECITE! 14024 | -9/Scraptown | Scanned Subdweller tech in exchange for log data 14029 | -9/Scraptown | Learned location of Warlord (-5) 14032 | -9/Scraptown | Learned location of 1 exit from Research 14034 | -9/Scraptown | Learned Research security intel 14039 | -9/Scraptown | Learned location of Testing (-2) 14074 | -9/Scraptown | Discovered new exit (range 5) 14302 | -9/Scraptown | Visited Fellowship of the Rings 14359 | -9/Scraptown | Visited IN-MT5's Study 14427 | -9/Scraptown | Visited UFD Registry 14427 | -9/Scraptown | Registered with UFD as "Fiberbot" 14467 | -9/Scraptown | Visited Comm Corps 15624 | -9/Scraptown | Entered Cyclist Reading Room 15757 | -9/Scraptown | Visited Research Penetration Think Tank 15812 | -9/Scraptown | Visited Derelict Rescue Squad 15887 | -9/Scraptown | Visited Abandonware Association 15927 | -9/Scraptown | Learned abandonware demo "REBOOT5.EXE" 16022 | -9/Scraptown | Delivered Scrap Shield to a Scientist 16341 | -9/Scraptown | Visited Junk Cannon Lab 16406 | -9/Scraptown | Visited Infowarlord's Domain 16426 | -9/Scraptown | Found Exp. Terrain Scanner 16477 | -9/Scraptown | Visited Junk Repository 16609 | -9/Scraptown | Visited Science Testing Area 16649 | -9/Scraptown | Visited Junk Repository 16823 | -9/Scraptown | Visited Scrap Suit Storage 16981 | -9/Scraptown | Found DRS Beacon 17077 | -9/Scraptown | Found Prototype Special Weapon 17159 | -9/Scraptown | Identified Junk Cannon 17475 | -9/Scraptown | Build established: Mutant 19137 | -9/Scraptown | Met Optimus 19137 | -9/Scraptown | Accepted into 0bPrime 19228 | -9/Scraptown | Discovered new exit (range 3) 19231 | -9/Scraptown | Entered Factory 19231 | -6/Factory | Evolved 8 slots: Propulsion x3, Utility x4, Weapon x1 19437 | -6/Factory | Loaded intel: 8 recycling unit locations 19689 | -6/Factory | Spotted B-75 Beast 19750 | -6/Factory | Lost 5 parts (2n2u1w) 19807 | -6/Factory | Lost 3 parts (2n1w) 20032 | -6/Factory | Destroyed 9 combat bots 20038 | -6/Factory | Lost 6 parts (1p1n2u2w) 20098 | -6/Factory | Build established: Hacker-Mutant 20292 | -6/Factory | Lost 3 parts (1n1u1w) 20399 | -6/Factory | Learned location of Protoforge (-2) 20400 | -6/Factory | Lost 3 parts (1p1n1w) 20454 | -6/Factory | Core integrity fell below 50% 20592 | -6/Factory | Identified exit to Lower Caves 20631 | -6/Factory | First assault squad dispatched 20785 | -6/Factory | Fabricated X-67 Chaingunner (x2) 21109 | -6/Factory | Core integrity fell below 20% 21186 | -6/Factory | Lost 6 parts (1p2n3w) 21339 | -6/Factory | Entered Lower Caves 21341 | -6/Lower Caves | UFD Scientist delivered a prototype 21343 | -6/Lower Caves | Found Prototype Protection 21343 | -6/Lower Caves | Identified Enh. Scrap Shield 21349 | -6/Lower Caves | Attached Rainbow Chip, gained temporary slots: Power, Propulsion, Utility, Weapon 21712 | -6/Lower Caves | Encountered a Warlord checkpoint 21979 | -6/Lower Caves | Spotted B-75 Beast 22181 | -6/Lower Caves | Discovered new exit (range 11) 22258 | -6/Lower Caves | Learned Factory terminal intel 22471 | -6/Lower Caves | Build established: Scavenger-Mutant 22773 | -6/Lower Caves | Attacked by a delusional Derelict stockpiling parts 22961 | -6/Lower Caves | Entered another Lower Caves area 22962 | -6/Lower Caves | Activated DRS Beacon 22963 | -6/Lower Caves | Attracted the attention of an 0b10 checkpoint 22987 | -6/Lower Caves | Destroyed by Y-54 Guardian with Gatling Laser Last Messages --------------- 22802_ Dropped Shock Rifle. 22802_ Acquired Minigun. 22806_ Enh. Scrap Shield absorbs Shock Rifle into its structure (+1). 22811_ Acquired 30 matter. 22934_ System corrupted: Matter fused (-5). LOCATION=UNKNOWN GOAL=ESCAPE 22961_ Dropped DRS Beacon. 22962_ DRS Beacon begins transmitting. DRS Beacon narrowcast message: "Please hold, a Derelict Rescue Squad will be with you shortly." 22963_ KK XBJ&XYY:CKT66G %SXSL6>CEGGG 22963_ Y-54 Guardian: "INTERCEPTING UNREGISTERED DERELICT." 22963_ Critical hit (Burn: +37). 22969_ Destroyed Lgt. Nuclear Core. 22969_ Destroyed VTOL Module. 22972_ S-27 Virus destroyed. 22975_ Dropped Enh. Scrap Shield. 22977_ VTOL Module fries itself beyond repair. 22977_ Com. Wheel destroyed. 22987_ Imp. Medium Treads destroyed. Map ----- +----------------------------------------------------+ | ?????????????????????????????????????????????????? | | ?????????????????????????????????????????????????? | | ?????????????????????????????????????????????????? | | ?????????????????????????????????????????????????? | | ?????????????????????????????????????????????????? | | ?????????????????????????????????????????????????? | | ?????????????????????????????????????????????????? | | ?????????????????????????????????????????????????? | | ?????????????????????????????????????????????????? | | ?????????????????????????????????????????????????? | | ?????????????????????????????????????????????????? | | ?????????????????????????????????????????????????? | | ?????????????????????????????????????????????????? | | ?????????????????????????????????????????????????? | | ?????????????????????????????????????????????????? | | ?????????????????#???????????????????????????????? | | ?????????????????# ??????????????????????????????? | | ?????????????????# ##???????????????????????????? | | ?????????????????# # #??????????????????????????? | | ????????????????## #?????????????????????????? | | ??????????????### #????????????????????????? | | ??????????????# ##??????????????????????? | | ??????????????# ##?????????????????????? | | ?????????????????# % ##????????????????????? | | ?????????????????# Y #????????????????????? | | ?????????????????# g @! #????????????????????? | | ?????????????????# ##????????????????????? | | ?????????????????# $ ????????????????????? | | ?????????????????######## ???????????????????? | | ????????????????????????#######??????????????????? | | ?????????????????????????????????????????????????? | | ?????????????????????????????????????????????????? | | ?????????????????????????????????????????????????? | | ?????????????????????????????????????????????????? | | ?????????????????????????????????????????????????? | | ?????????????????????????????????????????????????? | | ?????????????????????????????????????????????????? | | ?????????????????????????????????????????????????? | | ?????????????????????????????????????????????????? | | ?????????????????????????????????????????????????? | | ?????????????????????????????????????????????????? | | ?????????????????????????????????????????????????? | | ?????????????????????????????????????????????????? | | ?????????????????????????????????????????????????? | | ?????????????????????????????????????????????????? | | ?????????????????????????????????????????????????? | | ?????????????????????????????????????????????????? | | ?????????????????????????????????????????????????? | | ?????????????????????????????????????????????????? | | ?????????????????????????????????????????????????? | +----------------------------------------------------+ Best States ------------- Heat Dissipation 37 Coolant Potential 50 Energy Generation 18 Energy Capacity 300 Matter Stores 300 Matter Capacity 300 Sight Range 21 Robot Scan Range 20 Terrain Scan Range 30 Terrain Scan Density 210 Cloak Strength 3 Armor Coverage 1025 Evasion (%) 50 Melee Accuracy 6 Recoil Reduction 5 Offensive Hacking 42 Defensive Hacking 12 Item Schematics ----------------- Imp. Corruption Screen | -6/Factory | Hacked Imp. System Guard | -6/Factory | Hacked Adv. Medium Treads | -6/Factory | Hacked Robot Schematics ------------------ None Fabricated ------------ X-67 Chaingunner | x2 | -6/Factory | Preloaded Repaired ---------- Nothing Alien Tech Used ----------------- None Achievements -------------- None Challenges ------------ None Game ------ Seed InsulatedCobblerCloak Manual? 0 Play Time 01:56:43 Cumulative 274.2 hours Start 2025.05.31 @ 10:21:06 End 2025.05.31 @ 12:29:34 Sessions 1 Manual Loads 0 Difficulty Rogue Special Mode None Game No. 135 Rogue 135 Adventurer 0 Explorer 0 Win Type - Total 1 Types 0/0/0/0/1/0/0/0/0/0 Lore% 69 Gallery% 73 Achievement% 64 Wizard Run 0 Options --------- Layout 0 ASCII 0 Keyboard 0 Movement Mouse Keybinds 0 Fullscreen 1 Font 24/Smallcaps Map View 183x50 Zoom Use 0% Tactical HUD 1 Map Filters NONE Filters NONE Steam 0 RUN: 23a95b28-94ae-48cf-b0b9-b6b93eb41a0d